Cogmind - Beta 10.1 @@@ ROGUE MODE // 2020.10.27 @ 16:09:17 Player: Demise Result: Destroyed by 8R-AWN with 8R-AWN's Boregun Performance ------------- Evolutions (1) 500 Regions Visited (5) 1000 Robots Destroyed (106) 530 Value Destroyed (2347) 2347 Prototype IDs (36) 720 Alien Tech Used (0) 0 Bonus (404) 404 TOTAL SCORE: 5501 Bonus ------- High Alert Combat Kills 109 Follower Combat Kills 7 Aligned with FarCom 300 Friendly Fire -12 Cogmind --------- Core Integrity 0/400 Matter 86/300 Energy 280/280 System Corruption 0% Temperature Cool (274) Movement Treading (185) Ox2 Location -9/Exiles Parts ------- > --- POWER (1) -------- Heavy Ion Engine > --- PROPULSION (2) --- Advanced Treads Advanced Treads > --- UTILITY (4) ------ Humpback Hardened Medium Armor Plating Hardened Medium Armor Plating > --- WEAPON (2) ------- Improved Assault Rifle Improved Assault Rifle > --- INVENTORY (24) --- Cooling System Humpback Medium Matter Pod (100) Hardened Medium Armor Plating Hardened Medium Armor Plating Improved Assault Rifle Improved Assault Rifle Improved Assault Rifle Improved Light Cannon Improved Light Cannon Improved Light Cannon Mini Grenade Launcher Improved Datajack Heavy Explosive Trap Heavy Explosive Trap Heavy Explosive Trap Heavy Explosive Trap Peak State ------------ > --- POWER ------------ Heavy Ion Engine > --- PROPULSION ------- Advanced Treads Advanced Treads > --- UTILITY ---------- High-capacity Storage Unit Humpback Improved Targeting Computer > --- WEAPON ----------- Improved Assault Rifle Mini Grenade Launcher > --- INVENTORY -------- Advanced Treads Flying Fortress v7 Cooling System Large Storage Unit Large Storage Unit Large Storage Unit High-capacity Storage Unit Advanced Sensor Array Signal Interpreter Armor Integrity Analyzer Hardened Medium Armor Plating Hardened Medium Armor Plating Hardened Medium Armor Plating Hardened Medium Armor Plating Hacking Suite Chronowheel Improved Assault Rifle Improved Assault Rifle Improved Assault Rifle Improved Assault Rifle Improved Light Cannon Improved Light Cannon Improved Light Cannon Improved Datajack Mining Laser Heavy Explosive Trap Heavy Explosive Trap Heavy Explosive Trap Heavy Explosive Trap [Rating: 30] Favorites ----------- Power Heavy Ion Engine Engine Heavy Ion Engine Power Core Light Nuclear Core Propulsion Advanced Treads Treads Advanced Treads Leg Aluminum Leg Utility Large Storage Unit Device Improved Terrain Scanner Storage Large Storage Unit Processor Improved Targeting Computer Protection Hardened Medium Armor Plating Weapon Light Assault Rifle Energy Gun EM Pulse Gun Energy Cannon Advanced Beam Cannon Ballistic Gun Light Assault Rifle Ballistic Cannon Improved Light Cannon Launcher Mini Grenade Launcher Special Weapon Mining Laser Special Melee Weapon Improved Datajack Build | -11 -10 -10 -9 -9 -9 ------- Run | Scr Mat Min Mat Min Exi Slots Evolved 2 | . . . 2 . . Power . | . . . . . . Propulsion . | . . . . . . Utility 2 | . . . 2 . . Weapon . | . . . . . . Parts Attached 103 | 1 23 10 56 2 11 Power 13 | . 4 3 6 . . Engine 8 | . 3 2 3 . . Core 5 | . 1 1 3 . . Reactor . | . . . . . . Propulsion 18 | . 4 2 11 . 1 Treads 18 | . 4 2 11 . 1 Leg . | . . . . . . Wheel . | . . . . . . Hover . | . . . . . . Flight . | . . . . . . Utility 24 | 1 4 1 12 1 5 Device 1 | 1 . . . . . Storage 12 | . 4 1 4 1 2 Processor 4 | . . . 3 . 1 Hackware . | . . . . . . Protection 7 | . . . 5 . 2 Artifact . | . . . . . . Weapon 48 | . 11 4 27 1 5 Energy Gun 3 | . 2 . 1 . . Energy Cannon 2 | . . . 2 . . Ballistic Gun 30 | . 6 4 18 . 2 Ballistic Cannon 5 | . . . 3 . 2 Launcher 3 | . . . 2 1 . Special Weapon 4 | . 3 . 1 . . Impact Weapon . | . . . . . . Slashing Weapon . | . . . . . . Piercing Weapon . | . . . . . . Special Melee Weapon 1 | . . . . . 1 Unidentified Prototypes 5 | . . . 5 . . Parts Lost 15 | . 2 6 5 . 2 Power 4 | . 1 2 1 . . Propulsion 4 | . . 2 1 . 1 Utility 1 | . . . . . 1 Weapon 6 | . 1 2 3 . . Highest Loss Streak 3 | . 1 3 1 . 1 Average Slot Usage (%) 96 | . 99 98 99 100 88 Engine 10 | . 12 12 8 11 11 Core 1 | . 1 . 2 . . Treads 23 | . 25 27 21 22 22 Storage 23 | . 24 28 22 26 21 Processor 7 | . . . 11 11 11 Protection 4 | . . . 10 6 . Energy Gun 1 | . 5 . . . . Ballistic Gun 18 | . 22 28 19 20 7 Launcher 2 | . . . . 1 10 Naked Turns . | . . . . . . Heaviest Build 125 | 11 42 43 86 94 125 Greatest Support 46 | 20 46 46 46 44 44 Greatest Overweight (x) 3 | . 1 . 3 2 2 Average Overweight (x) . | . . . . 1 1 Largest Inventory Capacity 32 | 6 16 16 20 26 32 Average Capacity 20 | 6 14 16 18 22 30 Most Carried 32 | 6 16 16 20 25 32 Average Carried 18 | 6 14 15 18 21 24 Final Capacity 26 | 6 16 16 20 26 24 Final Carried 25 | 6 16 16 20 25 18 Class Distribution -------------------- 51% | Mutant 39% | Hauler-Mutant 8% | Scavenger-Mutant Dominant Class ---------------- Mutant | -10/Materials Mutant | -10/Mines Mutant | -9/Materials Hauler-Mutant | -9/Mines Hauler-Mutant | -9/Exiles Resources | -11 -10 -10 -9 -9 -9 ----------- Run | Scr Mat Min Mat Min Exi Matter Collected 2350 | 215 337 360 1200 76 162 Remotely . | . . . . . . Salvage Created 3204 | 91 585 474 1882 171 1 Parts 244 | 7 47 27 148 15 . Haulers Intercepted 8 | . 2 . 6 . . Recyclers Shooed 2 | . . 2 . . . Parts Field Recycled . | . . . . . . Retrieved Matter . | . . . . . . Parts Self-Destructed . | . . . . . . Prevented . | . . . . . . Kills | -11 -10 -10 -9 -9 -9 ------- Run | Scr Mat Min Mat Min Exi Combat Hostiles Destroyed 82 | . 11 12 43 13 3 Guns 64 | . 11 12 36 5 . Cannons 1 | . . . 1 . . AOE 17 | . . . 6 8 3 Classes Destroyed 10 | 2 5 1 1 1 . Tunneler 2 | 1 . . . 1 . Hauler 8 | . 2 . 6 . . Recycler 2 | 1 . 1 . . . Operator 4 | . 2 . 2 . . Watcher 8 | . 3 . 5 . . Swarmer 24 | . 3 6 13 2 . Grunt 34 | . 8 4 19 3 . Brawler 1 | . . . 1 . . Sentry 12 | . . 2 10 . . Assembled 11 | . . . . 8 3 Best Kill Streak 8 | 2 3 3 4 8 3 Combat Bots Only 8 | . 3 3 4 8 3 Max Kills in Single Turn 5 | 1 1 2 4 5 2 Gunslinging 1 | . . 1 1 . . Exploded 5 | . . . 4 5 2 Melee . | . . . . . . Uniques/NPCs Destroyed . | . . . . . . Combat | -11 -10 -10 -9 -9 -9 -------- Run | Scr Mat Min Mat Min Exi Damage Taken 4156 | . 428 902 1858 184 784 Core 574 | . 45 117 221 56 135 Absorbed by Shields . | . . . . . . Core Remaining (%) 67 | 100 . 35 . . . Volleys Fired 303 | 5 59 51 148 12 28 Largest 2 | 2 2 2 2 2 2 Hottest 113 | 60 100 40 113 46 78 Shots Fired 588 | 10 113 102 290 20 53 Gun 555 | 10 108 102 283 16 36 Cannon 18 | . . . 3 . 15 Launcher 8 | . . . 2 4 2 Special 7 | . 5 . 2 . . Kinetic 549 | 5 91 102 284 16 51 Thermal 8 | . 5 . 3 . . Explosive 8 | . . . 2 4 2 Electromagnetic 23 | 5 17 . 1 . . Robot Hit Streak 30 | 6 16 9 30 14 7 Robot Miss Streak 4 | 1 3 3 4 1 2 Penetration Max . | . . . . . . Secondary Targets 7 | . 2 2 3 . . Max Gunslinging Chain 1 | . 1 1 1 . . Shots Hit Robots 422 | 7 73 69 217 14 42 Core Hits 182 | 4 33 23 88 24 10 Critical Hits 4 | . 1 . 3 . . Critical Kills 3 | . 1 . 2 . . Critical Parts Destroyed 1 | . . . 1 . . Melee Attacks 1 | . . . . . 1 Impact . | . . . . . . Slashing . | . . . . . . Piercing . | . . . . . . Sneak Attacks 1 | . . . . . 1 Combat Hostiles . | . . . . . . Follow-up Attacks . | . . . . . . Damage Inflicted 6332 | 75 768 833 3039 732 885 Guns 4933 | 75 768 833 2643 183 431 Cannons 296 | . . . 41 . 255 Explosions 1103 | . . . 355 549 199 Melee . | . . . . . . Ramming . | . . . . . . Kinetic 4959 | 20 592 833 2645 183 686 Thermal 20 | . . . 20 . . Explosive 1103 | . . . 355 549 199 Electromagnetic 250 | 55 176 . 19 . . Impact . | . . . . . . Slashing . | . . . . . . Piercing . | . . . . . . Highest Corruption 1 | . 1 1 . . . Average Corruption 1 | . 1 1 . . . Corruption Purged . | . . . . . . Effects 8 | . 3 5 . . . Message Errors 4 | . 1 3 . . . Energy Discharges 1 | . . 1 . . . Data Loss (minor) 1 | . 1 . . . . Targeting Errors 2 | . 1 1 . . . Overload Shots . | . . . . . . Overflow Damage 48 | . . . . 38 10 Projectiles . | . . . . . . Explosions 48 | . . . . 38 10 Melee . | . . . . . . Knockbacks 4 | . . . . . 4 Impact . | . . . . . . Kinetic 4 | . . . . . 4 Secondary . | . . . . . . Self-Inflicted Damage . | . . . . . . Shots . | . . . . . . Rammed . | . . . . . . Targets Rammed . | . . . . . . Kicked . | . . . . . . Crushed . | . . . . . . Highest Temperature 277 | 20 96 32 64 13 277 Average Temperature 34 | 15 19 9 10 5 161 Received Heat Transfer 1214 | . 204 318 648 44 . Effects 2 | . . . . . 2 Interference 2 | . . . . . 2 Siege Activations . | . . . . . . Robots Corrupted . | . . . . . . Combat Hostiles . | . . . . . . Parts Fried . | . . . . . . Impact Corruptions . | . . . . . . Robots Melted . | . . . . . . Combat Hostiles . | . . . . . . Parts Melted . | . . . . . . Heat Transferred 37 | . . . 37 . . Parts Sabotaged . | . . . . . . Parts Stolen . | . . . . . . Parts Stripped . | . . . . . . Power Chain Reactions . | . . . . . . Missiles Intercepted . | . . . . . . Alert | -11 -10 -10 -9 -9 -9 ------- Run | Scr Mat Min Mat Min Exi Peak Influence 733 | 10 214 156 733 321 . Initial 271 | . 6 11 7 271 . Average 233 | 5 51 50 388 268 . Maximum Alert Level 3 | . 1 . 3 1 . Low Security (%) 57 | 100 98 100 25 31 . Level 1 20 | . 1 . 28 68 . Level 2 19 | . . . 40 . . Level 3 2 | . . . 4 . . Level 4 . | . . . . . . Level 5 . | . . . . . . High Security . | . . . . . . Max Security . | . . . . . . Squads Dispatched 10 | . 4 . 6 . . Investigation 4 | . 1 . 3 . . Extermination . | . . . . . . Reinforcement 6 | . 3 . 3 . . Assault . | . . . . . . Garrison . | . . . . . . Intercept . | . . . . . . Construction Impeded . | . . . . . . Haulers Reinforced . | . . . . . . Stealth | -11 -10 -10 -9 -9 -9 --------- Run | Scr Mat Min Mat Min Exi Distress Signals 3 | . 1 . 2 . . Communications Jammed . | . . . . . . Distress Signals . | . . . . . . Times Spotted 114 | . 23 14 60 14 3 Peak Tracking Total 9 | . 4 3 6 8 9 Tactical Retreats 3 | . . 1 1 1 . Traps | -11 -10 -10 -9 -9 -9 ------- Run | Scr Mat Min Mat Min Exi Traps Triggered 4 | . 2 . 2 . . Indirectly . | . . . . . . Trap Hack Attempts . | . . . . . . Triggered . | . . . . . . Disarmed . | . . . . . . Reprogrammed . | . . . . . . Reused . | . . . . . . Traps Extracted . | . . . . . . Installed . | . . . . . . Triggered . | . . . . . . Exploded 3 | . . . . . 3 Machines | -11 -10 -10 -9 -9 -9 ---------- Run | Scr Mat Min Mat Min Exi Machines Disabled 9 | . 1 1 2 2 3 Max in Single Turn 2 | . 1 1 1 2 2 Machines Sabotaged . | . . . . . . Garrisons Compromised . | . . . . . . Overloaded Fab Kills . | . . . . . . Fab Network Shutdowns . | . . . . . . Hacking | -11 -10 -10 -9 -9 -9 --------- Run | Scr Mat Min Mat Min Exi Machines Accessed 21 | . 6 . 12 1 2 Terminals 14 | . 5 . 8 1 . Fabricators . | . . . . . . Repair Stations 3 | . 1 . 2 . . Recycling Units . | . . . . . . Scanalyzers 2 | . . . 2 . . Garrison Access . | . . . . . . Total Hacks 74 | . 25 . 45 2 2 Successful 51 | . 15 . 33 1 2 Failed 22 | . 10 . 11 1 . Catastrophic 2 | . 2 . . . . Database Lockouts 1 | . . . 1 . . Manual 48 | . 21 . 24 2 1 Terminals 51 | . 23 . 26 2 . Fabricators . | . . . . . . Repair Stations 8 | . 2 . 6 . . Recycling Units . | . . . . . . Scanalyzers 13 | . . . 13 . . Garrison Access . | . . . . . . Terminal Hacks 15 | . 6 . 6 1 2 Record 1 | . . . . . 1 Part Schematic 5 | . 2 . 2 1 . Robot Analysis 3 | . 1 . 2 . . Locate Traps 4 | . 2 . 2 . . Recall Reinforcements 1 | . 1 . . . . EX-Prototype ID Bank 1 | . . . . . 1 Fabricator Hacks . | . . . . . . Repair Station Hacks 7 | . 2 . 5 . . Scan Component 4 | . 1 . 3 . . Repair 3 | . 1 . 2 . . Recycling Unit Hacks . | . . . . . . Scanalyzer 13 | . . . 13 . . Insert Component 6 | . . . 6 . . Analyze 7 | . . . 7 . . Garrison Access Hacks . | . . . . . . Unauthorized Hacks 16 | . 7 . 9 . . Terminals 16 | . 7 . 9 . . Track 1 | . 1 . . . . Assimilate 4 | . 2 . 2 . . Botnet 9 | . 3 . 6 . . Operators 2 | . 1 . 1 . . Fabricators . | . . . . . . Repair Stations . | . . . . . . Recycling Units . | . . . . . . Scanalyzers . | . . . . . . Garrison Access . | . . . . . . Data Cores Recovered . | . . . . . . Used . | . . . . . . Hacking Detections 19 | . 6 . 12 1 . Full Trace Events 5 | . 2 . 3 . . Feedback Events . | . . . . . . Feedback Blocked . | . . . . . . Robot Schematics Acquired . | . . . . . . Robots Built . | . . . . . . Matter . | . . . . . . Time . | . . . . . . Total Robot Build Rating . | . . . . . . Part Schematics Acquired 11 | . 2 . 8 1 . Parts Built . | . . . . . . Matter . | . . . . . . Time . | . . . . . . Total Part Build Rating . | . . . . . . Parts Repaired 3 | . 1 . 2 . . Time 90 | . 26 . 64 . . Parts Recycled . | . . . . . . Recycled Matter . | . . . . . . Retrieved Matter . | . . . . . . Retrieved Components . | . . . . . . Parts Scanalyzed 6 | . . . 6 . . Part Schematics Acquired 6 | . . . 6 . . Parts Damaged 1 | . . . 1 . . Bothacking | -11 -10 -10 -9 -9 -9 ------------ Run | Scr Mat Min Mat Min Exi Used RIF Installer . | . . . . . . Robots Hacked 1 | . . . . . 1 Non-combat . | . . . . . . Combat 1 | . . . . . 1 Robot Hacks Applied 1 | . . . . . 1 parse_system 1 | . . . . . 1 Relay Couplers Released . | . . . . . . Robots Rewired . | . . . . . . Allies Hacked . | . . . . . . Hacks Repelled . | . . . . . . Allies | -11 -10 -10 -9 -9 -9 -------- Run | Scr Mat Min Mat Min Exi Total Allies 3 | . . 3 . . . Largest Group 3 | . . 3 3 . . Highest-Rated Group 40 | . . 40 40 . . Highest-Rated Ally 16 | . . 16 16 . . Total Orders . | . . . . . . Ally Attacks 12 | . . . 12 . . Total Damage 87 | . . . 87 . . Kills 1 | . . . 1 . . Allies Corrupted . | . . . . . . Allies Melted . | . . . . . . Intel | -11 -10 -10 -9 -9 -9 ------- Run | Scr Mat Min Mat Min Exi Robot Analysis Total 3 | . 1 . 2 . . Derelict Logs Recovered 3 | . . 2 . 1 . Drone Launches . | . . . . . . Drone Recoveries . | . . . . . . Exploration | -11 -10 -10 -9 -9 -9 ------------- Run | Scr Mat Min Mat Min Exi Turns Passed 8134 | 21 1675 952 2978 613 1895 Spaces Moved 3844 | 4 685 483 1394 331 947 Core . | . . . . . . Treads 3758 | . 603 483 1394 331 947 Legs 86 | 4 82 . . . . Wheels . | . . . . . . Hover . | . . . . . . Flight . | . . . . . . Fastest Speed 120 | 120 120 160 160 165 145 Average Speed 170 | 120 158 160 169 172 184 Slowest Speed 205 | 120 160 160 205 185 185 Overloaded Moves . | . . . . . . Propulsion Burnouts . | . . . . . . Robots Hopped . | . . . . . . Cave-ins Triggered . | . . . . . . Exploration Rate (%) 69 | 2 90 93 93 69 70 Regions Visited 5 Branch Regions 3 Pre-discovered Areas 3 | . . 1 . 1 1 Known Exits Taken 1 | . . 1 . . . Unknown Exits Taken 4 | 1 1 . 1 1 . Scrap Searched 5 | . . 4 . 1 . Spaces Dug 6 | . 5 . 1 . . Terrain Destroyed 70 | . 5 . 19 30 16 Melee . | . . . . . . Projectile 6 | . 5 . 1 . . AOE 64 | . . . 18 30 16 Terrain Rammed . | . . . . . . Walls Destroyed . | . . . . . . Machines Disabled . | . . . . . . Actions | -11 -10 -10 -9 -9 -9 --------- Run | Scr Mat Min Mat Min Exi Total 4919 | 10 1170 568 1762 354 1055 Wait 473 | 1 364 6 87 5 10 Move 3839 | 3 684 482 1393 330 947 Hop . | . . . . . . Pick Up 96 | . 22 10 28 5 31 Fast Attach 26 | 1 4 2 17 . 2 Attach 19 | . 4 5 5 . 5 Detach 6 | . . 1 2 . 3 Swap 59 | . 15 3 35 2 4 Drop 97 | . 18 8 47 . 24 Fire 303 | 5 59 51 148 12 28 Melee 1 | . . . . . 1 Ram . | . . . . . . Kick . | . . . . . . Crush . | . . . . . . Escape Stasis . | . . . . . . Rewire . | . . . . . . Trap . | . . . . . . Miscellaneous . | . . . . . . Route ------- -11/Scrapyard -10/Materials (discovered 4 exits: *Mat x2 / [*Min x2]) -10/Mines (discovered 2 exits: *Mat x2) -9/Materials (discovered 4 exits: [*Mat x3] / *Min) -9/Mines -9/Exiles (discovered 1 exit: [*Min]) History --------- Turn | Location | Event 16 | -11/Scrapyard | Discovered new exit (range 3) 22 | -11/Scrapyard | Entered Materials 310 | -10/Materials | Discovered new exit (range 4) 316 | -10/Materials | Build established: Mutant 416 | -10/Materials | Discovered new exit (range 16) 515 | -10/Materials | Repaired Lrg. Storage Unit 642 | -10/Materials | Discovered new exit (range 14) 1503 | -10/Materials | Discovered new exit (range 16) 1697 | -10/Materials | Entered Mines 1820 | -10/Mines | Core integrity fell below 50% 1847 | -10/Mines | Lost 3 parts (1p2n) 1968 | -10/Mines | Discovered new exit (range 8) 2050 | -10/Mines | Identified exit to Materials 2054 | -10/Mines | Learned location of Mines (-9) 2644 | -10/Mines | Assisted by bots powering up and referring to "LRC-V3" 2649 | -10/Mines | Entered Materials 2649 | -9/Materials | Accompanied by 3 allies 2649 | -9/Materials | Evolved 2 slots: Utility x2 3121 | -9/Materials | Build established: Scavenger-Mutant 3356 | -9/Materials | Discovered new exit (range 13) 3862 | -9/Materials | Build established: Mutant 3938 | -9/Materials | Repaired Lgt. Assault Rifle? 4003 | -9/Materials | Discovered new exit (range 3) 4633 | -9/Materials | Repaired Adv. Treads 4790 | -9/Materials | Core integrity fell below 50% 4971 | -9/Materials | Central database locked down 5017 | -9/Materials | Discovered new exit (range 3) 5238 | -9/Materials | Build established: Hauler-Mutant 5351 | -9/Materials | Discovered new exit (range 14) 5627 | -9/Materials | Entered Mines 5703 | -9/Mines | Deemed a non-threat by the Exiles lab entrance 5703 | -9/Mines | Discovered new exit (range 5) 5982 | -9/Mines | Learned location of Zion (-6) 5992 | -9/Mines | Found a hidden stash of uninstalled traps 6169 | -9/Mines | Assembled infested the area 6215 | -9/Mines | Destroyed 8 combat bots 6240 | -9/Mines | Entered Exiles 6285 | -9/Exiles | Met 8R-AWN 6318 | -9/Exiles | Met EX-HEX 6521 | -9/Exiles | Met EX-DEC 6585 | -9/Exiles | Met EX-BIN 6611 | -9/Exiles | Aligned with FarCom system 6613 | -9/Exiles | Given EX-Vault access code 6656 | -9/Exiles | Opened EX-Vault 6665 | -9/Exiles | Found Flying Fortress v7 6670 | -9/Exiles | Found Chronowheel 6711 | -9/Exiles | Warned to stay clear of 0b10 Research branches 6873 | -9/Exiles | Discovered new exit (range 14) 7135 | -9/Exiles | Found 0b10 Alert Chip 7960 | -9/Exiles | Attacked by the Exiles 8062 | -9/Exiles | Core integrity fell below 20% 8135 | -9/Exiles | Destroyed by 8R-AWN with 8R-AWN's Boregun Last Messages --------------- 08088_ HV Slug penetrates Earth. 08091_ Penetrated by HV Slug. 08091_ HV Slug penetrates Earth. 08091_ Penetrated by HV Slug. 08091_ HV Slug penetrates Earth. 08093_ HV Slug penetrates Wall. 08097_ HV Slug penetrates Earth. 08101_ Destroyed 8R-AWN's Armor/TH. 08101_ Penetrated by HV Slug. 08127_ HV Slug penetrates Wall. 08127_ Penetrated by HV Slug. 08127_ HV Slug penetrates Earth. 08131_ Penetrated by HV Slug. 08131_ Critical hit. 08131_ Adv. Treads destroyed. 08131_ Penetrated by HV Slug. 08135_ Overheating: System interference. 08135_ Imp. Assault Rifle temporarily disabled. 08135_ Dropped Med. Matter Pod. 08135_ Penetrated by HV Slug. Map ----- +----------------------------------------------------+ | ?????????????????????????????????????????????????? | | ?????????#####???????????????????????????????????? | | ????????## ##??????????????????????????????????? | | ????????# #??????????????????????????????????? | | ????????# < #??????????????????????????????????? | | ????????# !|!###????????????????????????????????? | | ????????# !=!!! #????????????????????????????????? | | ????????# !!! ##????????????????????????????????? | | ????????## !!! #?????????????????????????????????? | | ?????????# ##????????????????????????????????? | | ?????????## #????????????#######?????????????? | | ??????????# #######??????#!!! "#?????????????? | | ??????????# #""##?????# "#?????????????? | | ??????????## #?????# "#?????????????? | | ???????????##" ##???## ""#????????????## | | ???????????#"" #####" ""#???????????? | | ???????????#### ##" ""#????????????" | | ??????????????## #"" ###???????????"" | | ???????????????#"## #####?????????"" | | ???????????????####### g ##????????"" | | ?????????????????????### #???????? | | ???????????????########" #?????????" | | ???????????????# """" #????????# | | ???????????????# ##" #####???### | | ???????????????# ! #?## ""#####X# | | ???????????????# @##??#" | | ???????????????# """" #;#???#"# % % | | ???????????????########## ???#### | | ???????????????????????? #??????### | | ????????????????????????# ????????### | | ????????????????????????# #??????????## | | ????????????????????????# #???????????## | | ????????????????????????# #????????????##" | | ???????????????????????? #?????????????#""" | | ???????????????????????? ?????????????##" | | ???????????????????????? ?????????????#"" | | ????????????????????????# ?????????????#""" | | ????????????????????????? ?????????????""" | | ????????????????????????? ?????????????""" | | ????????????????????????? ?????????????"" | | ????????????????????????? ?????????????""" | | ???????????????????????????????????????"" | | ???????????????????????????????????????#"" | | ???????????????????????????????????????#"""" | | ????????????????????????????????????????# | | ????????????????????????????????????????#" | | ????????????????????????????????????????#"""" | | ????????????????????????????????????????#"" | | ?????????????????????????????????????????? | | ?????????????????????????????????????????""" | +----------------------------------------------------+ Best States ------------- Heat Dissipation 28 Energy Generation 14 Energy Capacity 280 Matter Stores 300 Matter Capacity 300 Sight Range 16 Terrain Scan Range 16 Terrain Scan Density 10 Armor Coverage 450 Evasion (%) 40 Targeting Accuracy 6 Armor Integrity Analysis 33 Recoil Reduction 2 Item Schematics ----------------- Hcp. Storage Unit | -10/Materials | Hacked Lrg. Storage Unit | -10/Materials | Hacked Imp. Treads | -9/Materials | Scanalyzed Mni. Grenade Launcher | -9/Materials | Scanalyzed Hrd. Light Armor Plating | -9/Materials | Scanalyzed Hcp. Matter Pod | -9/Materials | Hacked Hcp. Battery | -9/Materials | Hacked Imp. Assault Rifle | -9/Materials | Scanalyzed Hacking Suite | -9/Materials | Scanalyzed Adv. Sensor Array | -9/Materials | Scanalyzed Arm. Wheel | -9/Mines | Hacked Robot Schematics ------------------ None Fabricated ------------ Nothing Alien Tech Used ----------------- None Achievements -------------- None Challenges ------------ None Game ------ Seed ImpulseImpactBuckler Manual? 0 Play Time 01:01:22 Cumulative 50.0 hours Start 2020.10.27 @ 15:10:49 End 2020.10.27 @ 16:09:17 Sessions 1 Manual Loads 0 Difficulty Rogue Special Mode None Game No. 43 Rogue 43 Adventurer 0 Explorer 0 Win Type - Total 0 Types 0/0/0/0/0/0/0/0/0 Lore% 41 Gallery% 46 Achievement% 50 Wizard Run 0 Options --------- ASCII 0 Keyboard 1 Movement Numpad Keybinds 0 Fullscreen 1 Font 12/Terminus Map View 83x54 Tactical HUD 1 Map Filters NONE Filters NONE Steam 1 RUN: 9e3e2875-8954-4302-acc7-b00c0a5ba703